fUST/lending_fUST_20250729
["ID","MTS","AMOUNT","RATE_DAILY","PERIOD"]
[375843384,1753757445701,-460.0,0.0002,2]
[375843386,1753757445715,-460.0,0.0002,2]
[375843388,1753757445729,-693.73,0.0002,2]
[375843390,1753757445743,-176.5683931,0.0002,2]
[375843392,1753757445756,-1359.1,0.0002,2]
[375843395,1753757445768,-460.0,0.0002,2]
[375843398,1753757445780,-2001.82,0.0002,2]
[375843401,1753757445793,-463.7,0.0002,2]
[375843403,1753757445807,-460.0,0.0002,2]
[375843405,1753757445818,-550.14,0.0002,2]
[375843407,1753757445830,-460.0,0.0002,2]
[375843410,1753757445844,-661.35,0.0002,2]
[375843412,1753757445856,-460.0,0.0002,2]
[375843414,1753757445868,-2030.95,0.0002,2]
[375843416,1753757445880,-470.02848119,0.0002,2]
[375843419,1753757445892,-460.0,0.0002,2]
[375843422,1753757445903,-460.0,0.0002,2]
[375843424,1753757445913,-460.0,0.0002,2]
[375843426,1753757445925,-460.0,0.0002,2]
[375843429,1753757445937,-460.0,0.0002,2]
[375843431,1753757445948,-460.0,0.0002,2]
[375843433,1753757445962,-460.0,0.0002,2]
[375843435,1753757445974,-460.0,0.0002,2]
[375843437,1753757445988,-460.0,0.0002,2]
[375843439,1753757446000,-1252.67,0.0002,2]
[375843441,1753757446013,-628.39,0.0002,2]
[375843444,1753757446026,-5072.52,0.0002,2]
[375843446,1753757446038,-460.0,0.0002,2]
[375843448,1753757446051,-468.28582491,0.0002,2]
[375843450,1753757446063,-1395.0,0.0002,2]
[375843452,1753757446076,-1374.39,0.0002,2]
[375843454,1753757446089,-460.0,0.0002,2]
[375843456,1753757446100,-478.95,0.0002,2]
[375843458,1753757446110,-460.0,0.0002,2]
[375843460,1753757446121,-460.0,0.0002,2]
[375843462,1753757446132,-514.18,0.0002,2]
[375843464,1753757446144,-460.0,0.0002,2]
[375843466,1753757446157,-1433.29,0.0002,2]
[375843469,1753757446171,-460.0,0.0002,2]
[375843471,1753757446185,-460.0,0.0002,2]
[375843473,1753757446198,-745.39,0.0002,2]
[375843475,1753757446211,-460.0,0.0002,2]
[375843477,1753757446221,-460.0,0.0002,2]
[375843479,1753757446233,-609.18,0.0002,2]
[375843481,1753757446245,-460.0,0.0002,2]
[375843483,1753757446256,-1580.49,0.0002,2]
[375843486,1753757446268,-460.0,0.0002,2]
[375843488,1753757446280,-460.0,0.0002,2]
[375843490,1753757446291,-460.0,0.0002,2]
[375843492,1753757446301,-460.0,0.0002,2]
[375843494,1753757446312,-460.0,0.0002,2]
[375843496,1753757446323,-547.05,0.0002,2]
[375843498,1753757446333,-841.06558547,0.00020017,2]
[375843500,1753757446344,-12637.12721421,0.00020017,2]
[375843502,1753757446354,-160.0,0.00020017,2]
[375843504,1753757446365,-214.91980558,0.00020017,2]
[375843506,1753757446376,-160.0,0.00020017,2]
[375843508,1753757446388,-160.0,0.00020017,2]
[375843510,1753757446398,-216.1031716,0.00020017,2]
[375843512,1753757446409,-151.0,0.00020136,2]
[375843514,1753757446420,-151.0,0.00020136,2]
[375843516,1753757446431,-151.0,0.00020136,2]
[375843518,1753757446442,-151.0,0.00020136,2]
[375843520,1753757446454,-151.0,0.00020136,2]
[375843522,1753757446471,-151.0,0.00020136,2]
[375843524,1753757446482,-151.0,0.00020136,2]
[375843527,1753757446494,-151.0,0.00020136,2]
[375843529,1753757446506,-151.0,0.00020136,2]
[375843531,1753757446517,-151.0,0.00020136,2]
[375843533,1753757446528,-501.72687444,0.00020147,2]
[375843535,1753757446540,-190.592826,0.00020187,2]
[375843537,1753757446553,-488.60497925,0.00020189,2]
[375843539,1753757446564,-1992.64598179,0.00020189,2]
[375843541,1753757446575,-1500.0,0.00020268,2]
[375843543,1753757446587,-1133.33,0.00020271,2]
[375843545,1753757446598,-1133.33,0.00020271,2]
[375843547,1753757446609,-1133.33,0.00020272,2]
[375843549,1753757446619,-268.67235079,0.00020273,2]
[375843551,1753757446631,-1846.48,0.00020273,2]
[375843553,1753757446643,-460.0,0.00020273,2]
[375843555,1753757446654,-460.0,0.00020273,2]
[375843557,1753757446665,-460.0,0.00020273,2]
[375843559,1753757446677,-460.0,0.00020273,2]
[375843561,1753757446688,-471.95095582,0.00020273,2]
[375843563,1753757446699,-460.0,0.00020273,2]
[375843565,1753757446712,-1086.78,0.00020273,2]
[375843567,1753757446723,-460.0,0.00020273,2]
[375843570,1753757446734,-460.0,0.00020273,2]
[375843572,1753757446745,-593.69,0.00020273,2]
[375843574,1753757446758,-460.0,0.00020273,2]
[375843576,1753757446769,-460.0,0.00020273,2]
[375843578,1753757446780,-460.0,0.00020273,2]
[375843580,1753757446791,-460.0,0.00020273,2]
[375843582,1753757446803,-460.0,0.00020273,2]
[375843584,1753757446814,-460.0,0.00020273,2]
[375843586,1753757446825,-460.0,0.00020273,2]
[375843588,1753757446836,-460.0,0.00020273,2]
[375843591,1753757446848,-460.0,0.00020273,2]
[375843593,1753757446859,-460.0,0.00020273,2]
[375843595,1753757446870,-1292.48,0.00020273,2]
[375843597,1753757446881,-460.0,0.00020273,2]
[375843599,1753757446891,-460.0,0.00020273,2]
[375843601,1753757446903,-460.0,0.00020273,2]
[375843603,1753757446915,-460.0,0.00020273,2]
[375843605,1753757446926,-2372.3850481,0.00020273,2]
[375843609,1753757446952,-1129.3249519,0.00020273,2]
[375843611,1753757446966,-478.4309536,0.00020273,2]
[375843613,1753757446977,-536.44884136,0.00020273,2]
[375843615,1753757446988,-460.0,0.00020273,2]
[375843617,1753757446999,-460.0,0.00020273,2]
[375843619,1753757447011,-460.0,0.00020273,2]
[375843621,1753757447023,-460.0,0.00020273,2]
[375843624,1753757447035,-574.5,0.00020273,2]
[375843626,1753757447046,-460.0,0.00020273,2]
[375843628,1753757447058,-460.0,0.00020273,2]
[375843630,1753757447069,-572.8,0.00020273,2]
[375843632,1753757447079,-460.0,0.00020273,2]
[375843634,1753757447090,-504.35843271,0.00020273,2]
[375843636,1753757447101,-471.90905699,0.00020273,2]
[375843638,1753757447112,-460.0,0.00020273,2]
[375843641,1753757447124,-460.0,0.00020273,2]
[375843642,1753757447135,-460.0,0.00020273,2]
[375843645,1753757447146,-460.0,0.00020273,2]
[375843647,1753757447156,-643.02,0.00020273,2]
[375843649,1753757447167,-460.0,0.00020273,2]
[375843651,1753757447178,-460.0,0.00020273,2]
[375843653,1753757447189,-460.0,0.00020273,2]
[375843655,1753757447199,-693.73,0.00020273,2]
[375843657,1753757447212,-1359.1,0.00020273,2]
[375843659,1753757447223,-463.7,0.00020273,2]
[375843661,1753757447234,-2001.82,0.00020273,2]
[375843664,1753757447245,-460.0,0.00020273,2]
[375843666,1753757447256,-550.14,0.00020273,2]
[375843668,1753757447267,-460.0,0.00020273,2]
[375843670,1753757447279,-661.35,0.00020273,2]
[375843672,1753757447291,-467.90495523,0.00020273,2]
[375843674,1753757447303,-2030.95,0.00020273,2]
[375843676,1753757447314,-460.0,0.00020273,2]
[375843679,1753757447326,-512.16421492,0.00020273,2]
[375843681,1753757447337,-460.0,0.00020273,2]
[375843683,1753757447348,-460.0,0.00020273,2]
[375843685,1753757447359,-460.0,0.00020273,2]
[375843687,1753757447370,-460.0,0.00020273,2]
[375843689,1753757447381,-460.0,0.00020273,2]
[375843691,1753757447392,-460.0,0.00020273,2]
[375843693,1753757447404,-460.0,0.00020273,2]
[375843695,1753757447416,-1252.67,0.00020273,2]
[375843717,1753757447611,-628.39,0.00020273,2]
[375843720,1753757447643,-460.0,0.00020273,2]
[375843722,1753757447661,-5072.52,0.00020273,2]
[375843724,1753757447671,-1395.0,0.00020273,2]
[375843726,1753757447680,-1374.39,0.00020273,2]
[375843728,1753757447690,-460.0,0.00020273,2]
[375843730,1753757447700,-478.95,0.00020273,2]
[375843732,1753757447710,-460.0,0.00020273,2]
[375843734,1753757447720,-460.0,0.00020273,2]
[375843736,1753757447729,-514.18,0.00020273,2]
[375843738,1753757447739,-460.0,0.00020273,2]
[375843740,1753757447749,-1433.29,0.00020273,2]
[375843742,1753757447759,-460.0,0.00020273,2]
[375843744,1753757447769,-460.0,0.00020273,2]
[375843746,1753757447779,-745.39,0.00020273,2]
[375843748,1753757447788,-460.0,0.00020273,2]
[375843750,1753757447797,-460.0,0.00020273,2]
[375843752,1753757447806,-609.18,0.00020273,2]
[375843754,1753757447816,-460.0,0.00020273,2]
[375843755,1753757447825,-1580.49,0.00020273,2]
[375843757,1753757447834,-460.0,0.00020273,2]
[375843759,1753757447844,-460.0,0.00020273,2]
[375843761,1753757447854,-460.0,0.00020273,2]
[375843763,1753757447863,-460.0,0.00020273,2]
[375843765,1753757447872,-460.0,0.00020273,2]
[375843767,1753757447882,-547.05,0.00020273,2]
[375843769,1753757447891,-197.70841845,0.00020274,2]
[375843771,1753757447901,-292.67712588,0.00020274,2]
[375843773,1753757447911,-500.0,0.00020274,2]
[375843775,1753757447921,-197.26163212,0.00020274,2]
[375843777,1753757447931,-160.0,0.00020421,2]
[375843779,1753757447940,-173.784,0.00020497,2]
[375843781,1753757447950,-1846.48,0.00020547,2]
[375843782,1753757447961,-460.0,0.00020547,2]
[375843783,1753757447971,-460.0,0.00020547,2]
[375843784,1753757447981,-460.0,0.00020547,2]
[375843785,1753757447991,-460.0,0.00020547,2]
[375843786,1753757448001,-460.0,0.00020547,2]
[375843787,1753757448010,-1086.78,0.00020547,2]
[375843788,1753757448020,-460.0,0.00020547,2]
[375843789,1753757448029,-460.0,0.00020547,2]
[375843790,1753757448039,-593.69,0.00020547,2]
[375843792,1753757448049,-460.0,0.00020547,2]
[375843793,1753757448058,-460.0,0.00020547,2]
[375843795,1753757448068,-460.0,0.00020547,2]
[375843797,1753757448077,-460.0,0.00020547,2]
[375843799,1753757448087,-460.0,0.00020547,2]
[375843801,1753757448101,-460.0,0.00020547,2]
[375843803,1753757448117,-460.0,0.00020547,2]
[375843805,1753757448126,-460.0,0.00020547,2]
[375843807,1753757448136,-460.0,0.00020547,2]
[375843809,1753757448147,-460.0,0.00020547,2]
[375843811,1753757448156,-460.0,0.00020547,2]
[375843813,1753757448166,-1292.48,0.00020547,2]
[375843815,1753757448176,-460.0,0.00020547,2]
[375843817,1753757448185,-460.0,0.00020547,2]
[375843819,1753757448195,-284.59094366,0.00020547,2]
[375843821,1753757448204,-3501.71,0.00020547,2]
[375843823,1753757448215,-460.0,0.00020547,2]
[375843825,1753757448226,-460.0,0.00020547,2]
[375843827,1753757448235,-460.0,0.00020547,2]
[375843829,1753757448245,-460.0,0.00020547,2]
[375843831,1753757448255,-574.5,0.00020547,2]
[375843833,1753757448265,-460.0,0.00020547,2]
[375843835,1753757448274,-460.0,0.00020547,2]
[375843837,1753757448284,-572.8,0.00020547,2]
[375843839,1753757448301,-460.0,0.00020547,2]
[375843841,1753757448317,-481.84716115,0.00020547,2]
[375843843,1753757448327,-460.0,0.00020547,2]
[375843845,1753757448336,-460.0,0.00020547,2]
[375843847,1753757448347,-460.0,0.00020547,2]
[375843850,1753757448356,-643.02,0.00020547,2]
[375843851,1753757448366,-460.0,0.00020547,2]
[375843854,1753757448377,-460.0,0.00020547,2]
[375843856,1753757448387,-460.0,0.00020547,2]
[375843857,1753757448396,-693.73,0.00020547,2]
[375843859,1753757448407,-1359.1,0.00020547,2]
[375843861,1753757448416,-463.7,0.00020547,2]
[375843863,1753757448426,-2001.82,0.00020547,2]
[375843865,1753757448436,-460.0,0.00020547,2]
[375843867,1753757448447,-460.0,0.00020547,2]
[375843869,1753757448457,-661.35,0.00020547,2]
[375843872,1753757448469,-2030.95,0.00020547,2]
[375843873,1753757448480,-460.0,0.00020547,2]
[375843875,1753757448490,-460.0,0.00020547,2]
[375843877,1753757448500,-460.0,0.00020547,2]
[375843879,1753757448510,-460.0,0.00020547,2]
[375843881,1753757448520,-460.0,0.00020547,2]
[375843883,1753757448529,-151.29235935,0.00020547,2]
[375843885,1753757448538,-460.0,0.00020547,2]
[375843887,1753757448550,-467.64182818,0.00020547,2]
[375843889,1753757448560,-1252.67,0.00020547,2]
[375843891,1753757448570,-628.39,0.00020547,2]
[375843893,1753757448580,-460.0,0.00020547,2]
[375843895,1753757448589,-5072.52,0.00020547,2]
[375843897,1753757448599,-1395.0,0.00020547,2]
[375843899,1753757448608,-1374.39,0.00020547,2]
[375843901,1753757448619,-460.0,0.00020547,2]
[375843903,1753757448628,-478.95,0.00020547,2]
[375843905,1753757448638,-460.0,0.00020547,2]
[375843907,1753757448648,-460.0,0.00020547,2]
[375843909,1753757448658,-514.18,0.00020547,2]
[375843911,1753757448668,-460.0,0.00020547,2]
[375843913,1753757448678,-1433.29,0.00020547,2]
[375843915,1753757448688,-460.0,0.00020547,2]
[375843917,1753757448698,-460.0,0.00020547,2]
[375843919,1753757448708,-745.39,0.00020547,2]
[375843921,1753757448719,-460.0,0.00020547,2]
[375843923,1753757448729,-460.0,0.00020547,2]
[375843925,1753757448739,-609.18,0.00020547,2]
[375843927,1753757448749,-1580.49,0.00020547,2]
[375843929,1753757448759,-460.0,0.00020547,2]
[375843930,1753757448769,-460.0,0.00020547,2]
[375843931,1753757448779,-460.0,0.00020547,2]
[375843932,1753757448789,-460.0,0.00020547,2]
[375843933,1753757448800,-460.0,0.00020547,2]
[375843934,1753757448809,-547.05,0.00020547,2]
[375843935,1753757448819,-500.0,0.00020548,2]
[375843936,1753757448830,-564.0,0.00020549,2]
[375843937,1753757448839,-564.0,0.00020622,2]
[375843938,1753757448849,-564.0,0.00020674,2]
[375843939,1753757448859,-564.0,0.00020693,2]
[375843940,1753757448869,-500.0,0.00020725,2]
[375843941,1753757448879,-564.0,0.0002078,2]
[375843942,1753757448889,-1552.0,0.00020786,2]
[375843943,1753757448899,-1680.0,0.00020787,2]
[375843944,1753757448910,-420.0,0.00020791,2]
[375843945,1753757448920,-254.0,0.00020791,2]
[375843946,1753757448930,-488.60497925,0.00020795,2]
[375843947,1753757448939,-168.30899074,0.00020802,2]
[375843948,1753757448949,-1000.0,0.00020816,2]
[375843949,1753757448961,-1133.33,0.0002082,2]
[375843950,1753757448981,-1846.48,0.00020821,2]
[375843951,1753757448991,-396.21301044,0.00020821,2]
[375843952,1753757449000,-460.0,0.00020821,2]
[375843953,1753757449010,-460.0,0.00020821,2]
[375843954,1753757449020,-460.0,0.00020821,2]
[375843955,1753757449029,-299.3314568,0.00020821,2]
[375843956,1753757449039,-1086.78,0.00020821,2]
[375843957,1753757449050,-460.0,0.00020821,2]
[375843958,1753757449059,-460.0,0.00020821,2]
[375843959,1753757449069,-593.69,0.00020821,2]
[375843961,1753757449079,-460.0,0.00020821,2]
[375843963,1753757449088,-460.0,0.00020821,2]
[375843965,1753757449098,-460.0,0.00020821,2]
[375843966,1753757449108,-460.0,0.00020821,2]
[375843967,1753757449118,-509.17402009,0.00020821,2]
[375843968,1753757449127,-460.0,0.00020821,2]
[375843969,1753757449137,-460.0,0.00020821,2]
[375843970,1753757449146,-460.0,0.00020821,2]
[375843971,1753757449156,-460.0,0.00020821,2]
[375843972,1753757449166,-460.0,0.00020821,2]
[375843973,1753757449176,-460.0,0.00020821,2]
[375843974,1753757449186,-1292.48,0.00020821,2]
[375843975,1753757449195,-460.0,0.00020821,2]
[375843976,1753757449204,-460.0,0.00020821,2]
[375843977,1753757449215,-3501.71,0.00020821,2]
[375843978,1753757449224,-460.0,0.00020821,2]
[375843979,1753757449233,-460.0,0.00020821,2]
[375843980,1753757449243,-460.0,0.00020821,2]
[375843981,1753757449253,-460.0,0.00020821,2]
[375843982,1753757449262,-574.5,0.00020821,2]
[375843983,1753757449272,-460.0,0.00020821,2]
[375843984,1753757449281,-460.0,0.00020821,2]
[375843985,1753757449291,-572.8,0.00020821,2]
[375843986,1753757449300,-460.0,0.00020821,2]
[375843987,1753757449309,-460.0,0.00020821,2]
[375843988,1753757449318,-599.26430333,0.00020821,2]
[375843989,1753757449328,-460.0,0.00020821,2]
[375843990,1753757449337,-643.02,0.00020821,2]
[375843991,1753757449347,-460.0,0.00020821,2]
[375843992,1753757449356,-460.0,0.00020821,2]
[375843993,1753757449365,-460.0,0.00020821,2]
[375843994,1753757449375,-693.73,0.00020821,2]
[375843995,1753757449385,-1359.1,0.00020821,2]
[375843996,1753757449395,-463.7,0.00020821,2]
[375843997,1753757449404,-2001.82,0.00020821,2]
[375843998,1753757449413,-460.0,0.00020821,2]
[375843999,1753757449423,-460.0,0.00020821,2]
[375844000,1753757449432,-661.35,0.00020821,2]
[375844001,1753757449442,-2030.95,0.00020821,2]
[375844002,1753757449451,-460.0,0.00020821,2]
[375844003,1753757449461,-460.0,0.00020821,2]
[375844004,1753757449473,-460.0,0.00020821,2]
[375844005,1753757449482,-460.0,0.00020821,2]
[375844006,1753757449493,-460.0,0.00020821,2]
[375844007,1753757449502,-460.0,0.00020821,2]
[375844008,1753757449513,-1252.67,0.00020821,2]
[375844009,1753757449524,-628.39,0.00020821,2]
[375844010,1753757449534,-460.0,0.00020821,2]
[375844011,1753757449545,-5072.52,0.00020821,2]
[375844012,1753757449554,-1395.0,0.00020821,2]
[375844013,1753757449563,-1374.39,0.00020821,2]
[375844014,1753757449573,-460.0,0.00020821,2]
[375844015,1753757449582,-478.95,0.00020821,2]
[375844016,1753757449592,-460.0,0.00020821,2]
[375844017,1753757449601,-460.0,0.00020821,2]
[375844019,1753757449611,-514.18,0.00020821,2]
[375844021,1753757449620,-460.0,0.00020821,2]
[375844023,1753757449631,-1433.29,0.00020821,2]
[375844025,1753757449642,-460.0,0.00020821,2]
[375844027,1753757449651,-460.0,0.00020821,2]
[375844029,1753757449661,-745.39,0.00020821,2]
[375844031,1753757449671,-460.0,0.00020821,2]
[375844033,1753757449681,-460.0,0.00020821,2]
[375844035,1753757449690,-609.18,0.00020821,2]
[375844037,1753757449701,-1580.49,0.00020821,2]
[375844039,1753757449712,-460.0,0.00020821,2]
[375844041,1753757449722,-460.0,0.00020821,2]
[375844043,1753757449731,-460.0,0.00020821,2]
[375844045,1753757449742,-460.0,0.00020821,2]
[375844047,1753757449752,-460.0,0.00020821,2]
[375844049,1753757449763,-547.05,0.00020821,2]
[375844051,1753757449772,-500.0,0.00020822,2]
[375844053,1753757449783,-475.703007,0.00020854,2]
[375844056,1753757449792,-500.0,0.00020882,2]
[375844057,1753757449801,-260.0,0.00020969,2]
[375844059,1753757449811,-564.0,0.00021038,2]
[375844061,1753757449820,-564.0,0.00021064,2]
[375844063,1753757449829,-1133.33,0.00021094,2]
[375844065,1753757449839,-1846.48,0.00021095,2]
[375844067,1753757449848,-460.0,0.00021095,2]
[375844069,1753757449858,-460.0,0.00021095,2]
[375844071,1753757449868,-460.0,0.00021095,2]
[375844073,1753757449877,-1086.78,0.00021095,2]
[375844075,1753757449887,-460.0,0.00021095,2]
[375844077,1753757449897,-460.0,0.00021095,2]
[375844079,1753757449907,-593.69,0.00021095,2]
[375844081,1753757449917,-460.0,0.00021095,2]
[375844083,1753757449926,-460.0,0.00021095,2]
[375844085,1753757449936,-460.0,0.00021095,2]
[375844087,1753757449945,-460.0,0.00021095,2]
[375844089,1753757449955,-460.0,0.00021095,2]
[375844091,1753757449965,-460.0,0.00021095,2]
[375844093,1753757449974,-460.0,0.00021095,2]
[375844095,1753757449984,-460.0,0.00021095,2]
[375844097,1753757449993,-460.0,0.00021095,2]
[375844099,1753757450003,-460.0,0.00021095,2]
[375844101,1753757450013,-1292.48,0.00021095,2]
[375844103,1753757450023,-460.0,0.00021095,2]
[375844105,1753757450033,-460.0,0.00021095,2]
[375844107,1753757450043,-3501.71,0.00021095,2]
[375844109,1753757450052,-460.0,0.00021095,2]
[375844111,1753757450062,-460.0,0.00021095,2]
[375844113,1753757450071,-480.43287858,0.00021095,2]
[375844115,1753757450082,-460.0,0.00021095,2]
[375844117,1753757450092,-574.5,0.00021095,2]
[375844119,1753757450101,-460.0,0.00021095,2]
[375844121,1753757450112,-460.0,0.00021095,2]
[375844123,1753757450122,-572.8,0.00021095,2]
[375844125,1753757450131,-460.0,0.00021095,2]
[375844127,1753757450140,-460.0,0.00021095,2]
[375844129,1753757450150,-460.0,0.00021095,2]
[375844131,1753757450159,-643.02,0.00021095,2]
[375844133,1753757450169,-460.0,0.00021095,2]
[375844134,1753757450179,-460.0,0.00021095,2]
[375844136,1753757450188,-460.0,0.00021095,2]
[375844138,1753757450198,-693.73,0.00021095,2]
[375844140,1753757450208,-1359.1,0.00021095,2]
[375844142,1753757450218,-2001.82,0.00021095,2]
[375844144,1753757450227,-463.7,0.00021095,2]
[375844146,1753757450237,-460.0,0.00021095,2]
[375844148,1753757450246,-460.0,0.00021095,2]
[375844150,1753757450256,-661.35,0.00021095,2]
[375844152,1753757450266,-2030.95,0.00021095,2]
[375844154,1753757450276,-460.0,0.00021095,2]
[375844156,1753757450286,-460.0,0.00021095,2]
[375844158,1753757450295,-460.0,0.00021095,2]
[375844160,1753757450305,-460.0,0.00021095,2]
[375844162,1753757450314,-460.0,0.00021095,2]
[375844164,1753757450323,-460.0,0.00021095,2]
[375844166,1753757450332,-1252.67,0.00021095,2]
[375844168,1753757450341,-628.39,0.00021095,2]
[375844170,1753757450351,-460.0,0.00021095,2]
[375844172,1753757450360,-5072.52,0.00021095,2]
[375844174,1753757450370,-1395.0,0.00021095,2]
[375844176,1753757450380,-1374.39,0.00021095,2]
[375844178,1753757450389,-460.0,0.00021095,2]
[375844180,1753757450398,-478.95,0.00021095,2]
[375844182,1753757450407,-460.0,0.00021095,2]
[375844184,1753757450417,-460.0,0.00021095,2]
[375844186,1753757450427,-514.18,0.00021095,2]
[375844188,1753757450436,-460.0,0.00021095,2]
[375844190,1753757450446,-1433.29,0.00021095,2]
[375844192,1753757450456,-460.0,0.00021095,2]
[375844194,1753757450468,-460.0,0.00021095,2]
[375844196,1753757450487,-745.39,0.00021095,2]
[375844198,1753757450497,-460.0,0.00021095,2]
[375844200,1753757450506,-460.0,0.00021095,2]
[375844202,1753757450516,-609.18,0.00021095,2]
[375844204,1753757450527,-1580.49,0.00021095,2]
[375844206,1753757450536,-460.0,0.00021095,2]
[375844208,1753757450546,-460.0,0.00021095,2]
[375844210,1753757450555,-460.0,0.00021095,2]
[375844212,1753757450565,-460.0,0.00021095,2]
[375844214,1753757450576,-460.0,0.00021095,2]
[375844216,1753757450585,-547.05,0.00021095,2]
[375844218,1753757450595,-500.0,0.00021096,2]
[375844220,1753757450605,-564.0,0.00021133,2]
[375844222,1753757450614,-168.0,0.00021169,2]
[375844224,1753757450624,-564.0,0.00021189,2]
[375844226,1753757450633,-564.0,0.00021207,2]
[375844228,1753757450642,-168.0,0.00021237,2]
[375844230,1753757450651,-564.0,0.00021237,2]
[375844232,1753757450661,-168.0,0.00021252,2]
[375844234,1753757450670,-564.0,0.00021285,2]
[375844236,1753757450680,-564.0,0.00021287,2]
[375844238,1753757450689,-151.0,0.000213,4]
[375844240,1753757450700,-564.0,0.00021343,2]
[375844242,1753757450709,-429.1,0.00021366,4]
[375844244,1753757450720,-200.0,0.00021367,15]
[375844246,1753757450729,-200.0,0.00021367,15]
[375844248,1753757450739,-200.0,0.00021367,15]
[375844250,1753757450748,-200.0,0.00021367,15]
[375844252,1753757450767,-320.0,0.00021367,15]
[375844254,1753757450782,-1133.33,0.00021368,2]
[375844256,1753757450792,-553.96582747,0.00021369,2]
[375844258,1753757450802,-2213.64744656,0.00021369,2]
[375844260,1753757450812,-1846.48,0.00021369,2]
[375844262,1753757450821,-460.0,0.00021369,2]
[375844264,1753757450832,-460.0,0.00021369,2]
[375844266,1753757450842,-460.0,0.00021369,2]
[375844268,1753757450851,-1086.78,0.00021369,2]
[375844270,1753757450861,-460.0,0.00021369,2]
[375844272,1753757450871,-698.846,0.00021369,2]
[375844274,1753757450880,-460.0,0.00021369,2]
[375844276,1753757450889,-593.69,0.00021369,2]
[375844296,1753757451069,-460.0,0.00021369,2]
[375844298,1753757451084,-460.0,0.00021369,2]
[375844300,1753757451094,-460.0,0.00021369,2]
[375844302,1753757451104,-460.0,0.00021369,2]
[375844304,1753757451114,-460.0,0.00021369,2]
[375844306,1753757451123,-368.27209254,0.00021369,2]
[375844308,1753757451133,-460.0,0.00021369,2]
[375844310,1753757451143,-460.0,0.00021369,2]
[375844312,1753757451152,-460.0,0.00021369,2]
[375844315,1753757451162,-460.0,0.00021369,2]
[375844317,1753757451172,-1292.48,0.00021369,2]
[375844319,1753757451182,-460.0,0.00021369,2]
[375844320,1753757451192,-460.0,0.00021369,2]
[375844323,1753757451201,-3501.71,0.00021369,2]
[375844324,1753757451213,-460.0,0.00021369,2]
[375844327,1753757451222,-460.0,0.00021369,2]
[375844329,1753757451232,-460.0,0.00021369,2]
[375844330,1753757451242,-574.5,0.00021369,2]
[375844333,1753757451252,-460.0,0.00021369,2]
[375844335,1753757451262,-460.0,0.00021369,2]
[375844337,1753757451271,-572.8,0.00021369,2]
[375844339,1753757451281,-460.0,0.00021369,2]
[375844341,1753757451290,-460.0,0.00021369,2]
[375844342,1753757451300,-460.0,0.00021369,2]
[375844344,1753757451309,-643.02,0.00021369,2]
[375844346,1753757451319,-460.0,0.00021369,2]